bitfinex/quotes_ETHUSD_20241130
["timestamp","ask_amount","ask_price","bid_price","bid_amount"]
[1732931010712,0.7574,3611.6,3611.5,0.24180397]
[1732931010918,3.52625,3611.6,3611.5,0.24180397]
[1732931011065,2.76908,3611.3,3611.2,0.38688809]
[1732931011270,2.76908,3611.3,3611.2,0.24181361]
[1732931011574,2.769,3611.4,3611.2,0.24181361]
[1732931011796,2.769,3611.4,3611.3,0.24181361]
[1732931012901,2.79357704,3611.4,3611.3,0.24181361]
[1732931013423,0.02457704,3611.4,3611.3,0.24181361]
[1732931013712,3.52626,3611.6,3611.3,0.24181361]
[1732931013887,0.02454803,3611.4,3611.2,0.38688809]
[1732931014080,2.76902,3611.4,3611.2,0.38688809]
[1732931014286,3.52626,3611.6,3611.3,0.24175629]
[1732931014582,3.52626,3611.6,3611.4,0.24175629]
[1732931014782,3.52626,3611.6,3611.5,0.24175629]
[1732931015410,0.7574,3611.6,3611.5,0.24175629]
[1732931016186,0.78197429,3611.6,3611.5,0.24175629]
[1732931016378,3.55082429,3611.6,3611.5,0.24175629]
[1732931017873,0.78197429,3611.6,3611.5,0.24175629]
[1732931018313,0.02457429,3611.6,3611.5,0.62875786]
[1732931018679,2.76877,3611.8,3611.5,0.24175629]
[1732931018995,2.76877,3611.8,3611.6,0.24175629]
[1732931019203,2.76877,3611.8,3611.1,0.51122139]
[1732931019204,1.35281779,3611.9,3611.7,0.24175629]
[1732931019402,1.35281779,3611.9,3611.8,0.24175629]
[1732931019576,3.56462,3611.9,3611.8,0.24175629]
[1732931019775,3.5892418,3611.9,3611.8,0.24175629]
[1732931019977,0.0246218,3611.9,3611.8,0.24175629]
[1732931020277,3.56441,3612.2,3611.8,0.62858053]
[1732931020498,0.0246238,3611.9,3611.6,2.76879]
[1732931020775,3.56441,3612.2,3611.7,3.39710979]
[1732931021113,2.79311411,3612.1,3611.8,0.62833092]
[1732931021314,2.79311411,3612.1,3611.9,0.24166507]
[1732931021486,2.76854,3612.0,3611.7,0.38666585]
[1732931021698,0.02467897,3612.0,3611.9,2.76862]
[1732931022016,2.77304,3612.7,3612.0,10.0]
[1732931022017,3.56414,3612.6,3612.0,10.0]
[1732931022218,3.56416,3612.6,3612.1,0.62828097]
[1732931022399,0.796,3612.6,3612.2,0.24161512]
[1732931022600,0.796,3612.6,3612.3,0.24161512]
[1732931022809,0.005,3612.7,3612.4,3.00985512]
[1732931023021,0.005,3612.7,3612.5,3.00976512]
[1732931023324,0.2582646,3613.4,3612.5,3.00976512]
[1732931023325,1.73360571,3615.1,3614.6,6.92538159]
[1732931023534,0.25802139,3615.0,3614.6,2.76655]
[1732931023823,1.11,3615.3,3614.7,3.00598685]
[1732931023992,1.11,3615.3,3614.8,0.23957685]
[1732931024179,1.11,3615.3,3614.9,0.23957685]
[1732931024497,4.91298411,3615.3,3614.9,0.23957685]
[1732931024709,4.91298411,3615.3,3614.4,2.76665]
[1732931024710,2.14696411,3615.3,3614.1,2.76694]
[1732931024873,1.11,3615.3,3614.2,0.62131643]
[1732931025077,1.11,3615.3,3614.7,2.76642]
[1732931025421,2.76615,3615.2,3614.4,2.7667]
[1732931025582,2.22,3615.3,3613.7,2.7672]
[1732931025583,4.98609,3615.3,3614.8,0.23856513]
[1732931025777,5.761286,3615.3,3614.6,2.76653]
[1732931026003,5.761286,3615.3,3614.1,3.0]
[1732931026004,2.76622,3615.1,3614.7,0.23856709]
[1732931026317,2.76622,3615.1,3614.1,3.0]
[1732931026318,3.51909,3614.9,3614.1,2.76692]
[1732931026506,3.51909,3614.9,3614.2,0.23836654]
[1732931026707,3.51909,3614.9,3614.3,0.23836654]
[1732931027022,3.51909,3614.9,3613.4,0.39995489]
[1732931027023,2.76665,3614.5,3613.7,2.76717]
[1732931027314,0.628529,3614.8,3614.1,2.76686]
[1732931027501,2.76617,3615.1,3614.3,2.76672]
[1732931027702,2.76617,3615.1,3614.4,3.00499895]
[1732931028017,0.005,3615.2,3614.5,0.23819221]
[1732931028018,2.76626,3615.0,3614.5,0.23819221]
[1732931028189,2.7711,3615.2,3614.4,2.7667]
[1732931028392,3.45772,3615.1,3614.5,0.23819221]
[1732931028712,3.45772,3615.1,3614.4,2.7667]
[1732931028895,3.45772,3615.1,3614.5,0.238165]
[1732931029080,2.7663,3615.0,3614.5,0.238165]
[1732931029279,2.77111,3615.2,3615.1,5.76617]
[1732931029280,0.005,3615.2,3615.1,5.76617]
[1732931029510,0.005,3615.2,3615.1,6.67122361]
[1732931029710,0.005,3615.2,3615.1,7.52790715]
[1732931030028,0.005,3615.2,3615.1,7.52788285]
[1732931030698,0.005,3615.2,3615.1,7.92487672]
[1732931031020,0.005,3615.2,3615.1,7.52788285]
[1732931031175,0.01186322,3617.7,3615.7,3.0]
[1732931031380,0.01186322,3617.7,3617.6,2.76426]
[1732931031821,0.01186322,3617.7,3617.6,0.23697757]
[1732931032192,0.01186322,3617.7,3617.1,0.37842399]
[1732931032398,0.01186322,3617.7,3617.2,0.26413881]
[1732931032588,0.1545203,3617.8,3617.4,2.76438]
[1732931032788,1.11,3617.7,3617.5,0.61492013]
[1732931033013,1.11,3617.7,3617.5,2.76433]
[1732931033329,1.11,3617.7,3617.6,3.37908017]
[1732931033484,1.11,3617.7,3617.6,0.61482017]
[1732931033687,1.11,3617.7,3617.6,0.23646858]
[1732931033882,1.11,3617.7,3617.6,0.23604009]
[1732931034194,1.11,3617.7,3617.6,0.23575387]
[1732931034400,2.22,3617.7,3617.6,2.76426]
[1732931034731,2.22,3617.7,3617.6,2.99997391]
[1732931035027,2.22,3617.7,3617.6,3.37711729]
[1732931035437,2.22,3617.7,3617.6,0.61285729]
[1732931035580,2.22,3617.7,3617.6,0.23571391]
[1732931035995,3.33,3617.7,3617.6,0.23545693]
[1732931036387,3.33,3617.7,3617.6,2.99971693]
[1732931036937,3.33,3617.7,3617.6,3.37608075]
[1732931037119,3.33,3617.7,3617.6,0.61182075]
[1732931037421,3.33,3617.7,3617.6,0.23545693]
[1732931037742,7.55263203,3617.7,3616.8,2.76486]
[1732931037935,2.76427,3617.6,3616.9,3.61143057]
[1732931038139,4.78845203,3617.7,3617.0,0.61143057]
[1732931038293,4.44,3617.7,3617.6,2.76426]
[1732931038488,4.44,3617.7,3617.6,0.61143057]
[1732931038829,4.44,3617.7,3617.6,0.61121002]
[1732931038998,4.44,3617.7,3617.6,0.23516489]
[1732931039198,5.55,3617.7,3617.6,0.23516489]
[1732931040431,9.16103503,3617.7,3617.6,0.23516489]
[1732931040654,2.76429,3617.6,3617.0,0.84618429]
[1732931040861,2.76429,3617.6,3616.9,2.76473]
[1732931041150,10.27104503,3617.7,3617.0,2.99980682]
[1732931041316,7.50685503,3617.7,3617.1,0.6112491]
[1732931041519,6.66,3617.7,3617.2,0.23509682]
[1732931041719,6.66,3617.7,3617.3,0.23509682]
[1732931041926,6.66,3617.7,3617.2,0.37615228]
[1732931041927,6.66,3617.7,3617.4,0.23509682]
[1732931042104,6.66,3617.7,3617.5,0.23509682]
[1732931042304,6.66,3617.7,3617.6,2.99935682]
[1732931042542,7.77,3617.7,3617.6,2.99935682]
[1732931043238,7.77,3617.7,3617.6,3.94766491]
[1732931043439,7.77,3617.7,3617.6,4.41248093]
[1732931043661,7.77,3617.7,3617.6,4.40949798]
[1732931043949,7.77,3617.7,3617.6,3.94477355]
[1732931044159,8.88,3617.7,3617.6,4.40949798]
[1732931044466,8.88,3617.7,3617.6,3.8331213]
[1732931044606,8.88,3617.7,3617.6,3.36839687]
[1732931044806,8.88,3617.7,3617.6,0.60413687]
[1732931045037,9.7048,3617.7,3617.6,0.2323595]
[1732931045237,12.46898,3617.7,3617.6,0.2323595]
[1732931045555,2.76434,3617.5,3617.0,0.37232507]
[1732931045858,9.99,3617.7,3617.3,2.76448]
[1732931046165,9.99,3617.7,3617.6,3.15153377]
[1732931046458,9.99,3617.7,3617.6,3.75651664]
[1732931046755,9.99,3617.7,3617.6,3.75692192]
[1732931047056,9.99,3617.7,3617.6,3.36907651]
[1732931047407,11.1,3617.7,3617.6,3.36907651]
[1732931048026,11.1,3617.7,3617.6,4.89077889]
[1732931048208,11.1,3617.7,3617.6,4.50306944]
[1732931049020,12.21,3617.7,3617.6,4.50306944]
[1732931049845,7.77,3617.7,3617.6,4.50306944]
[1732931050057,0.1545203,3617.8,3617.7,3.31418]
[1732931050359,0.1545203,3617.8,3617.7,4.72558237]
[1732931050543,3e-07,3617.8,3617.7,4.72558237]
[1732931050943,3e-07,3617.8,3617.7,4.14795326]
[1732931052358,3e-07,3617.8,3617.7,4.63103521]
[1732931052359,1.1100003,3617.8,3617.7,4.63103521]
[1732931052563,1.1092003,3617.8,3617.7,4.14795326]
[1732931052727,1.1092003,3617.8,3617.7,4.60340153]
[1732931053068,1.1092003,3617.8,3617.7,4.14795326]
[1732931053528,1.1092003,3617.8,3617.7,3.83424375]
[1732931053967,2.2192003,3617.8,3617.7,1.07006375]
[1732931054516,2.2192003,3617.8,3617.7,3.83424375]
[1732931055161,2.2192003,3617.8,3617.7,1.07006375]
[1732931055582,3.3292003,3617.8,3617.7,1.07006375]
[1732931055762,6.0933103,3617.8,3617.7,1.07006375]
[1732931055961,6.70264133,3617.8,3617.7,1.07006375]
[1732931056679,3.3292003,3617.8,3617.7,1.07006375]
[1732931057052,4.4392003,3617.8,3617.7,1.07006375]
[1732931057290,7.2033103,3617.8,3617.7,1.07006375]
[1732931057480,7.9698103,3617.8,3617.7,1.07006375]
[1732931057785,7.9698103,3617.8,3617.7,0.23676375]
[1732931057949,7.9698103,3617.8,3617.7,0.62894235]
[1732931058151,7.9698103,3617.8,3617.7,0.23676375]
[1732931058841,9.0798103,3617.8,3617.7,0.23676375]
[1732931060587,10.1898103,3617.8,3617.1,2.76458]
[1732931060752,2.76418,3617.7,3617.0,0.69797302]
[1732931060956,2.76433,3617.6,3617.0,0.69797302]
[1732931061167,2.76418,3617.7,3617.0,0.69797302]
[1732931061369,7.4257003,3617.8,3617.6,2.76425]
[1732931061686,7.4257003,3617.8,3617.4,2.7644]
[1732931061985,7.4257003,3617.8,3617.3,3.46242302]
[1732931062287,8.5357003,3617.8,3617.4,0.69797302]
[1732931062482,8.5357003,3617.8,3617.3,2.76445]
[1732931062696,8.5678003,3617.8,3617.5,2.76427]
[1732931062846,8.5678003,3617.8,3617.5,0.69797302]
[1732931063039,2.76434,3617.5,3617.4,0.69797302]
[1732931063269,2.76434,3617.5,3616.8,0.69797302]
[1732931063483,2.76419,3617.7,3616.9,0.69797302]
[1732931063686,2.76419,3617.7,3616.3,0.55950744]
[1732931063687,2.76419,3617.7,3617.1,2.76459]
[1732931063852,1.11,3617.5,3617.2,0.69797302]
[1732931064053,2.76442,3617.4,3617.2,0.69797302]
[1732931064296,1.11,3617.5,3616.8,2.76484]
[1732931064467,2.76442,3617.4,3616.8,4.08559432]
[1732931064670,2.76442,3617.4,3616.8,3.3876213]
[1732931064955,2.14201868,3617.4,3616.8,3.3876213]
[1732931065156,1.11,3617.5,3616.9,2.76473]
[1732931065357,2.22,3617.5,3617.0,2.76466]
[1732931065940,2.22,3617.5,3617.1,2.76463]
[1732931066173,2.22,3617.5,3617.2,2.76452]
[1732931066483,2.22,3617.5,3617.3,2.76446]
[1732931066828,2.22,3617.5,3616.9,2.76477]
[1732931067098,3.33,3617.5,3617.4,2.76441]
[1732931067802,3.33,3617.5,3617.4,3.14130408]
[1732931068690,4.44,3617.5,3617.4,3.14130408]
[1732931068898,3.57574005,3617.5,3617.4,3.14130408]
[1732931069183,3.57574005,3617.5,3617.4,4.5452553]
[1732931069694,3.57574005,3617.5,3617.4,4.78064931]
[1732931070357,4.68574005,3617.5,3617.4,4.78064931]
[1732931072327,5.79574005,3617.5,3617.4,4.78064931]
[1732931072529,5.79574005,3617.5,3617.4,5.33939692]
[1732931073187,5.79574005,3617.5,3617.4,5.61669692]
[1732931073786,6.90574005,3617.5,3617.4,5.61669692]
[1732931074195,6.90574005,3617.5,3617.4,5.00440883]
[1732931074467,6.90574005,3617.5,3617.4,5.61642332]
[1732931075223,6.90574005,3617.5,3617.4,4.9184503]
[1732931075426,8.01574005,3617.5,3617.4,4.6411503]
[1732931077019,9.12574005,3617.5,3617.4,4.6411503]
[1732931078748,10.23574005,3617.5,3617.4,4.6411503]
[1732931078911,9.37155048,3617.5,3617.4,4.6411503]
[1732931079901,8.74934336,3617.5,3617.4,7.5581503]
[1732931080219,8.74934336,3617.5,3617.4,4.6411503]
[1732931080546,9.85934336,3617.5,3617.4,4.6411503]
[1732931080715,9.85934336,3617.5,3617.4,3.9351721]
[1732931080916,9.85934336,3617.5,3617.4,3.93530052]
[1732931082044,10.96934336,3617.5,3617.4,3.93530052]
[1732931083253,10.96934336,3617.5,3617.4,4.21260052]
[1732931083700,12.07934336,3617.5,3617.4,4.21260052]
[1732931085360,13.18934336,3617.5,3617.4,4.21260052]
[1732931086343,13.18934336,3617.5,3617.4,4.67694233]
[1732931086742,7.7692003,3617.8,3617.7,6.50848]
[1732931086907,0.7622,3620.0,3619.5,2.76278]
[1732931087109,0.7622,3620.0,3619.6,0.60670781]
[1732931087110,3.52468,3620.0,3619.6,0.60670781]
[1732931087426,3.52468,3620.0,3619.7,0.23543869]
[1732931087603,3.52468,3620.0,3619.2,2.76304]
[1732931087604,0.8111,3620.5,3619.8,0.60670781]
[1732931087805,0.8111,3620.5,3619.9,0.60279997]
[1732931087806,2.76221,3620.3,3619.9,0.60279997]
[1732931088004,2.76221,3620.3,3620.0,0.37095486]
[1732931088005,0.357831,3620.3,3620.0,0.37095486]
[1732931088249,3.120041,3620.3,3620.1,0.23184511]
[1732931088552,3.120041,3620.3,3620.2,0.23184511]
[1732931088860,0.357831,3620.3,3620.2,0.23184511]
[1732931090252,1.467831,3620.3,3620.2,0.23184511]
[1732931091267,5.041131,3620.3,3620.2,0.23147426]
[1732931091418,5.041131,3620.3,3619.8,0.37036149]
[1732931091419,2.7625,3619.9,3619.8,0.37036149]
[1732931091621,0.8111,3619.6,3618.8,0.4630078]
[1732931091818,2.76286,3619.5,3618.8,0.37045598]
[1732931092019,2.76286,3619.5,3618.8,3.13379598]
[1732931092218,0.8111,3619.4,3618.9,0.37045598]
[1732931092454,2.76296,3619.3,3618.9,0.37045598]
[1732931092761,4.207701,3619.4,3618.8,0.37045598]
[1732931093055,1.444761,3619.4,3618.8,3.13373598]
[1732931093287,0.8111,3619.4,3619.2,2.76303]
[1732931093467,0.8111,3619.4,3619.3,2.76296]
[1732931093778,1.11,3619.4,3619.3,0.37048588]
[1732931094079,1.11,3619.4,3619.2,0.37048588]
[1732931094388,1.11,3619.4,3619.3,2.76288]
[1732931094575,1.11,3619.4,3619.3,3.13336588]
[1732931094879,1.11,3619.4,3619.3,0.37048588]
[1732931095084,1.11,3619.4,3619.3,2.76296]
[1732931095268,2.22,3619.4,3619.3,0.37048588]
[1732931095662,2.22,3619.4,3619.3,3.13344588]
[1732931096950,3.33,3619.4,3619.3,3.13344588]
[1732931097955,3.33,3619.4,3619.3,0.37048588]
[1732931098401,3.33,3619.4,3619.2,0.37048588]
[1732931098553,4.44,3619.4,3619.3,3.13344588]
[1732931100245,5.55,3619.4,3619.3,3.13344588]
[1732931101102,5.55,3619.4,3619.3,3.59685104]
[1732931101394,5.55,3619.4,3619.3,3.13357675]
[1732931102010,6.66,3619.4,3619.3,3.13357675]
[1732931103566,7.77,3619.4,3619.3,3.36304026]
[1732931105103,8.88,3619.4,3619.3,3.36304026]
[1732931106192,8.88,3619.4,3619.3,3.82631455]
[1732931106494,8.88,3619.4,3619.3,4.10361455]
[1732931106662,9.99,3619.4,3619.3,4.10361455]
[1732931106850,9.99,3619.4,3619.3,3.64034026]
[1732931107056,9.99,3619.4,3619.3,4.09467864]
[1732931107555,2.04657118,3619.4,3619.3,7.03337864]
[1732931108299,1.18e-06,3619.4,3619.3,7.03337864]
[1732931108505,1.18e-06,3619.4,3619.3,7.59699947]
[1732931109024,1.11,3619.9,3619.8,2.76258]
[1732931109192,1.11,3619.9,3619.8,3.60947942]
[1732931109393,1.11,3619.9,3619.8,6.75569864]
[1732931109801,1.11,3620.3,3620.2,2.76227]
[1732931110016,1.11,3620.3,3620.2,4.19845079]
[1732931110293,1.11,3620.3,3620.2,4.43608612]
[1732931110629,1.11,3620.3,3620.2,4.51192146]
[1732931111643,1.11,3620.3,3620.2,4.53362146]
[1732931112497,1.11,3620.5,3620.4,2.76212]
[1732931112692,1.11,3620.5,3620.4,3.84330614]
[1732931112911,3e-07,3621.4,3621.3,2.76143]
[1732931113190,7.24e-06,3621.7,3621.6,2.76121]
[1732931113391,7.24e-06,3621.7,3621.6,6.34418307]
[1732931113634,7.24e-06,3621.7,3621.6,6.11514826]
[1732931113846,7.24e-06,3621.7,3621.6,3.49310639]
[1732931113989,7.24e-06,3621.7,3621.6,3.5834486]
[1732931114345,7.24e-06,3621.7,3621.6,7.05902915]
[1732931114577,7.24e-06,3621.7,3621.6,6.46519461]
[1732931114709,7.24e-06,3621.7,3621.6,6.92166178]
[1732931114894,7.24e-06,3621.7,3621.6,4.75742991]
[1732931115103,7.24e-06,3621.7,3621.6,4.30062907]
[1732931115337,7.24e-06,3621.7,3621.6,5.07885901]
[1732931115631,7.24e-06,3621.7,3621.6,4.52885901]
[1732931116933,1.11000724,3621.7,3621.6,4.52885901]
[1732931117339,7.24e-06,3621.7,3621.6,4.52885901]
[1732931117507,7.24e-06,3621.7,3621.6,5.07885901]
[1732931117696,0.8132,3623.5,3623.2,2.75991]
[1732931117892,0.8132,3623.5,3623.3,0.22822994]
[1732931118096,0.8132,3623.5,3623.3,2.7599]
[1732931118493,1.9232,3623.5,3623.1,2.76005]
[1732931118820,2.11552,3623.5,3623.2,2.98749048]
[1732931119019,2.11552,3623.5,3623.4,2.75983]
[1732931119342,1.9232,3623.5,3623.4,2.98735982]
[1732931119685,1.9232,3623.5,3623.4,3.35107947]
[1732931119864,1.11,3623.5,3623.4,3.35107947]
[1732931120066,2.22,3623.5,3623.4,3.72973486]
[1732931120267,2.22,3623.5,3623.4,3.35107947]
[1732931120450,2.22,3623.5,3623.4,3.90564547]
[1732931120658,2.22,3623.5,3623.4,4.35817069]
[1732931120867,2.22,3623.5,3623.4,4.73635682]
[1732931121066,2.22,3623.5,3623.4,5.19454481]
[1732931121335,2.22,3623.5,3623.4,4.35817069]
[1732931121578,2.22,3623.5,3623.4,4.73586178]
[1732931121881,3.33,3623.5,3623.4,4.35817069]
[1732931122052,3.33,3623.5,3623.4,4.90817069]
[1732931122654,3.33,3623.5,3623.4,4.35817069]
[1732931123469,4.44,3623.5,3623.4,4.35817069]
[1732931123835,4.44,3623.5,3623.4,5.46211969]
[1732931124250,4.05213154,3623.5,3623.4,5.48381969]
[1732931124467,4.05213154,3623.5,3623.4,6.03381969]
[1732931124940,4.05213154,3623.5,3623.4,5.48381969]
[1732931125140,5.16213154,3623.5,3623.4,8.48381969]
[1732931125371,5.16213154,3623.5,3623.4,8.46211969]
[1732931125558,5.16213154,3623.5,3623.4,7.35817069]
[1732931126442,4.23297546,3623.5,3623.4,10.97479865]
[1732931126644,4.23297546,3623.5,3623.4,11.52479865]
[1732931126846,5.34297546,3623.5,3623.4,11.14982462]
[1732931127046,5.07639796,3623.5,3623.4,14.44179865]
[1732931127249,5.07639796,3623.5,3623.4,14.19770707]
[1732931127487,5.07639796,3623.5,3623.4,14.41983801]
[1732931128488,6.18639796,3623.5,3623.4,14.41983801]
[1732931128659,5.91982045,3623.5,3623.4,14.41983801]
[1732931128989,5.29877306,3623.5,3623.4,14.41983801]
[1732931129342,0.9108203,3624.9,3623.4,11.21573775]
[1732931129706,0.9108203,3624.9,3624.1,0.37019207]
[1732931129883,0.9108203,3624.9,3624.2,0.59924379]
[1732931130040,2.0208203,3624.9,3624.3,0.57754379]
[1732931130241,2.0208203,3624.9,3624.4,0.57754379]
[1732931130483,2.0208203,3624.9,3624.5,0.57754379]
[1732931130680,2.0208203,3624.9,3624.6,0.22213094]
[1732931131105,2.0208203,3624.9,3624.7,0.22213094]
[1732931131255,2.0208203,3624.9,3624.2,0.35541285]
[1732931131256,0.7563,3624.8,3624.2,0.35541285]
[1732931131462,0.7563,3624.8,3624.3,0.22205317]
[1732931131682,0.7563,3624.8,3624.4,0.22205317]
[1732931131683,1.8663,3624.8,3624.4,0.22205317]
[1732931131902,0.0808203,3624.9,3624.5,0.22205317]
[1732931132058,0.0808203,3624.9,3624.6,0.22205317]
[1732931132264,0.0808203,3624.9,3624.7,0.22205317]
[1732931132465,0.0808203,3624.9,3624.8,0.22205317]
[1732931133206,0.0308203,3625.0,3624.8,0.22205317]
[1732931133373,0.0308203,3625.0,3624.4,0.64749207]
[1732931133374,1.11,3624.9,3624.6,0.37019207]
[1732931133593,1.11,3624.9,3624.7,0.57775252]
[1732931133792,1.11,3624.9,3624.8,0.57775252]
[1732931134924,2.22,3624.9,3624.8,0.57775252]
[1732931135285,2.22,3624.9,3624.8,1.00027698]
[1732931136092,2.22,3624.9,3624.8,1.27757698]
[1732931136521,3.33,3624.9,3624.8,1.27757698]
[1732931137687,3.33,3624.9,3624.8,1.26905198]
[1732931138191,4.44,3624.9,3624.8,1.26905198]
[1732931138391,4.44,3624.9,3624.8,0.84652752]
[1732931138606,4.44,3624.9,3624.8,0.56922752]
[1732931139902,5.55,3624.9,3624.8,0.84652752]
[1732931140841,6.4974,3624.9,3624.8,0.56922752]
[1732931141051,5.55,3624.9,3624.6,1.1995]
[1732931141344,5.55,3624.9,3624.8,0.6286858]
[1732931141558,6.66,3624.9,3624.8,0.21961374]
[1732931141712,6.66,3624.9,3624.8,0.84829954]
[1732931142354,5.79763641,3624.9,3624.8,0.84829954]
[1732931143219,6.90763641,3624.9,3624.8,0.57099954]
[1732931144652,6.90763641,3624.9,3624.4,0.5420283]
[1732931144804,8.01763641,3624.9,3624.5,0.175097]
[1732931145005,8.01763641,3624.9,3624.5,3.14751283]
[1732931145205,8.01763641,3624.9,3624.5,0.14751283]
[1732931145405,8.01763641,3624.9,3624.5,3.14751283]
[1732931145619,8.01763641,3624.9,3624.5,3.17509701]
[1732931145830,8.01763641,3624.9,3624.6,0.37171253]
[1732931146247,7.39671521,3624.9,3624.7,0.57277562]
[1732931146557,8.50671521,3624.9,3624.8,0.35247878]
[1732931146857,8.50671521,3624.9,3624.8,0.57277562]
[1732931147726,8.07409203,3624.9,3624.8,1.59347562]
[1732931148027,9.18409203,3624.9,3624.8,2.05670546]
[1732931148839,8.65594141,3624.9,3624.8,2.05670546]
[1732931149563,9.76594141,3624.9,3624.8,2.05748815]
[1732931149962,9.76594141,3624.9,3624.8,0.57355831]
[1732931151221,10.87594141,3624.9,3624.8,0.57355831]
[1732931152632,10.01360871,3624.9,3624.8,0.57355831]
[1732931152824,10.56352771,3624.9,3624.8,6.09708733]
[1732931153021,10.56352771,3624.9,3624.8,6.48757695]
[1732931153223,10.56352771,3624.9,3624.8,6.41191651]
[1732931153897,10.56352771,3624.9,3624.8,0.49789787]
[1732931154481,11.67352771,3624.9,3624.8,0.49789787]
[1732931155341,11.67352771,3624.9,3624.8,0.57401611]
[1732931155881,11.67352771,3624.9,3624.8,0.85131611]
[1732931156087,12.78352771,3624.9,3624.8,1.35293387]
[1732931156434,12.78352771,3624.9,3624.8,0.85131611]
[1732931156633,12.78352771,3624.9,3624.8,0.57401611]
[1732931157982,13.89352771,3624.9,3624.8,0.57401611]
[1732931159501,15.00352771,3624.9,3624.8,0.57401611]
[1732931160273,15.00352771,3624.9,3624.8,0.96450573]
[1732931160798,15.00352771,3624.9,3624.8,0.98764119]
[1732931161106,16.11352771,3624.9,3624.8,0.98764119]
[1732931161260,15.49263225,3624.9,3624.8,0.98764119]
[1732931162299,15.49263225,3624.9,3624.8,0.63422295]
[1732931162597,16.60263225,3624.9,3624.8,0.63422295]
[1732931163387,15.74028852,3624.9,3624.8,0.97385216]
[1732931164011,16.69788852,3624.9,3624.8,0.56022708]
[1732931164302,20.56657852,3624.9,3624.8,0.22059787]
[1732931164616,2.75922,3624.2,3622.8,0.14329525]
[1732931164935,0.9576,3624.0,3623.3,0.666487]
[1732931165225,0.9576,3623.9,3623.3,0.666487]
[1732931165574,0.9576,3623.9,3622.7,0.56377127]
[1732931165803,2.0676,3623.9,3622.7,0.56377127]
[1732931166032,2.0676,3623.9,3622.7,1.23025827]
[1732931166519,2.75971,3623.6,3622.7,1.23025827]
[1732931166818,1.1576,3623.1,3620.5,3.21869297]
[1732931166987,1.1576,3623.1,3621.6,1.104667]
[1732931166988,0.9576,3622.8,3621.6,1.104667]
[1732931167197,0.9576,3622.8,3621.7,0.02760727]
[1732931167530,0.9576,3622.8,3621.6,1.104667]
[1732931167673,0.9576,3622.8,3621.7,0.19254604]
[1732931168125,0.9576,3622.8,3621.7,0.16493975]
[1732931168415,3.7179,3622.8,3621.7,0.16493975]
[1732931168634,3.7179,3622.8,3621.5,0.54473054]
[1732931168812,0.9576,3622.8,3621.6,1.104665]
[1732931168985,3.94033,3622.7,3621.5,0.54473054]
[1732931169376,2.76052,3622.5,3620.5,3.36077599]
[1732931169619,4.04027,3622.7,3620.5,3.36077599]
[1732931169620,1.1799,3622.7,3620.6,0.02760997]
[1732931169774,3.94029,3622.7,3621.3,0.56212984]
[1732931169981,2.76046,3622.6,3620.8,0.02760929]
[1732931170300,1.1799,3622.7,3620.8,0.02760929]
[1732931170495,2.2899,3622.7,3620.8,0.02760929]
[1732931170687,5.686274,3622.7,3620.7,0.55]
[1732931170890,1.1799,3622.5,3620.6,1.104748]
[1732931171114,2.76085,3622.1,3620.6,1.104748]
[1732931171284,0.404075,3622.0,3620.7,0.2253831]
[1732931171489,1.1799,3622.2,3620.9,0.55240651]
[1732931171688,1.1799,3622.2,3621.0,0.02761016]
[1732931171983,1.1799,3622.2,3620.9,0.55240651]
[1732931172228,2.2899,3622.2,3621.0,0.02761024]
[1732931172391,2.2899,3622.2,3620.9,0.55240651]
[1732931172728,5.0507,3622.2,3621.0,0.18825376]
[1732931173023,2.2899,3622.2,3621.0,0.18825376]
[1732931173226,2.3899,3622.2,3621.0,0.18825376]
[1732931173424,2.2899,3622.2,3620.7,0.2253831]
[1732931173595,2.2899,3622.2,3620.7,0.02761367]
[1732931173797,3.3999,3622.2,3620.7,1.104882]
[1732931174295,3.3999,3622.2,3620.8,0.02761243]
[1732931174500,3.3999,3622.2,3620.7,1.104882]
[1732931174787,3.3999,3622.2,3620.8,0.16864478]
[1732931175235,3.3999,3622.2,3620.0,81.0968]
[1732931175236,2.86083,3622.1,3620.0,81.0968]
[1732931175432,2.76121,3621.6,3620.0,80.0]
[1732931175735,1.1799,3620.4,3620.0,80.0]
[1732931177258,2.76227,3620.3,3620.0,80.0]
[1732931177527,1.1799,3620.2,3620.0,72.0002]
[1732931177729,1.2799,3620.2,3620.0,60.0005]
[1732931177934,2.76235,3620.1,3620.0,60.0005]
[1732931178139,1.1799,3620.2,3620.0,60.0005]
[1732931178433,3.81805,3620.1,3620.0,32.47386892]
[1732931178643,3.81805,3620.1,3616.6,0.28830016]
[1732931178644,0.2,3619.0,3618.3,1.105566]
[1732931178848,2.76306,3619.2,3616.7,1.12443957]
[1732931178849,0.1,3619.2,3616.7,1.12443957]
[1732931179001,3.21869297,3619.7,3617.3,1.0968]
[1732931179205,3.31869297,3619.7,3617.3,1.0968]
[1732931179536,3.21869297,3619.2,3617.4,0.37263449]
[1732931179705,2.76328,3618.9,3617.4,0.16458601]
[1732931179892,2.76335,3618.8,3617.4,0.16458601]
[1732931180089,2.76356,3618.6,3617.4,0.16458601]
[1732931180290,2.76356,3618.6,3615.7,3.31869297]
[1732931180291,3.21869297,3618.1,3616.0,0.02764055]
[1732931180532,0.1,3618.4,3614.8,5.0]
[1732931180533,3.21869297,3617.6,3615.8,1.0968]
[1732931180699,2.76405,3617.9,3616.1,0.56142561]
[1732931181035,3.21869297,3618.1,3616.2,0.02764819]
[1732931181236,3.21869297,3618.1,3616.1,0.56142561]
[1732931181440,2.76408,3617.9,3616.2,0.16582256]
[1732931181733,2.76405,3617.9,3616.2,0.16582256]
[1732931181890,2.76412,3617.8,3616.2,0.16582256]
[1732931182292,2.76419,3617.7,3615.6,1.0968]
[1732931182491,0.1,3617.7,3615.2,1.0968]
[1732931183111,1.11,3617.9,3615.2,1.0968]
[1732931183112,2.76472,3617.0,3615.2,1.0968]
[1732931183318,0.1,3617.3,3615.2,1.0968]
[1732931183522,2.76487,3616.8,3614.5,0.02765021]
[1732931183735,0.1,3617.0,3614.6,0.20722698]
[1732931183937,2.76504,3616.6,3614.4,1.1702]
[1732931184137,2.76487,3616.8,3614.8,0.56015392]
[1732931184342,1.11,3617.3,3615.6,3.21869297]